bitfinex/quotes_SOLUSD_20241102
["timestamp","ask_amount","ask_price","bid_price","bid_amount"]
[1730567785360,11.40723766,164.42,164.38,41.26732166]
[1730567786678,11.40723766,164.41,164.38,29.860084]
[1730567789083,11.40723766,164.43,164.38,56.47592166]
[1730567789259,11.40723766,164.44,164.4,23.776884]
[1730567789659,11.40723766,164.45,164.4,11.40723766]
[1730567789855,11.40723766,164.45,164.39,23.776884]
[1730567789856,11.40723766,164.46,164.41,35.18412166]
[1730567790263,11.40723766,164.46,164.41,41.26602166]
[1730567790462,11.40723766,164.47,164.43,23.776884]
[1730567790659,11.40723766,164.48,164.43,35.18412166]
[1730567791791,11.40723766,164.48,164.45,23.776884]
[1730567792175,11.40723766,164.49,164.45,23.776884]
[1730567792484,11.40723766,164.5,164.45,35.18412166]
[1730567792854,11.40723766,164.51,164.46,11.40723766]
[1730567793061,11.40723766,164.51,164.47,23.776884]
[1730567793554,11.40723766,164.51,164.47,29.856884]
[1730567793762,11.40723766,164.49,164.47,23.776884]
[1730567793964,11.40723766,164.48,164.46,23.776884]
[1730567794264,11.40723766,164.47,164.46,23.776884]
[1730567795184,11.40723766,164.47,164.42,20.0]
[1730567795479,11.40723766,164.43,164.39,6.0827]
[1730567795689,11.40723766,164.42,164.39,6.0827]
[1730567796566,17.76367869,164.42,164.39,15.2077]
[1730567797261,17.76367869,164.42,164.4,23.776884]
[1730567800583,17.76367869,164.41,164.4,23.776884]
[1730567800766,17.76367869,164.41,164.36,21.294]
[1730567800966,17.76367869,164.4,164.36,21.294]
[1730567801787,17.76367869,164.43,164.37,17.76367869]
[1730567802376,17.76367869,164.43,164.39,6.083]
[1730567802568,17.76367869,164.43,164.4,23.776884]
[1730567803300,17.76367869,164.41,164.39,23.776884]
[1730567808301,17.76367869,164.4,164.35,40.54600498]
[1730567808508,17.76367869,164.39,164.37,23.776884]
[1730567808874,17.76367869,164.38,164.36,23.776884]
[1730567809298,17.76367869,164.39,164.36,23.776884]
[1730567809506,17.76367869,164.37,164.36,23.776884]
[1730567810200,17.76367869,164.37,164.35,6.30703751]
[1730567810376,17.76367869,164.36,164.35,6.30703751]
[1730567811494,17.76367869,164.36,164.31,21.3006]
[1730567811801,17.76367869,164.37,164.32,6.30988904]
[1730567812411,31.0297,164.42,164.32,12.39528904]
[1730567812412,17.76367869,164.36,164.32,12.39528904]
[1730567812704,17.76367869,164.36,164.33,23.776884]
[1730567816516,11.3769579,164.36,164.33,23.776884]
[1730567818008,6.0837,164.38,164.33,23.776884]
[1730567818009,17.4606579,164.38,164.33,41.2390419]
[1730567818217,11.3769579,164.39,164.35,23.776884]
[1730567819093,11.3769579,164.39,164.35,29.861184]
[1730567822207,11.3769579,164.39,164.35,45.072584]
[1730567822391,17.4596579,164.4,164.35,56.4495419]
[1730567822922,11.3769579,164.42,164.37,11.3769579]
[1730567823212,11.3769579,164.42,164.38,23.776884]
[1730567823919,11.3769579,164.41,164.38,23.776884]
[1730567824115,11.3769579,164.41,164.37,23.776884]
[1730567824305,17.4592579,164.41,164.37,23.776884]
[1730567825909,11.3769579,164.4,164.37,23.776884]
[1730567826307,17.4597579,164.4,164.37,23.776884]
[1730567826515,11.3769579,164.39,164.37,23.776884]
[1730567827219,6.0828,164.4,164.34,11.3769579]
[1730567827220,11.3769579,164.38,164.34,23.776884]
[1730567827403,11.3769579,164.36,164.34,23.776884]
[1730567827603,11.3769579,164.37,164.34,23.776884]
[1730567828208,11.3769579,164.38,164.34,23.776884]
[1730567828419,11.3769579,164.39,164.36,23.776884]
[1730567828823,11.3769579,164.39,164.35,23.776884]
[1730567829821,11.3769579,164.4,164.35,35.1538419]
[1730567830120,11.3769579,164.39,164.35,29.861384]
[1730567830322,11.3769579,164.39,164.35,23.776884]
[1730567830818,11.3769579,164.38,164.35,23.776884]
[1730567831135,11.3769579,164.38,164.35,29.861384]
[1730567832600,11.3769579,164.38,164.35,23.776884]
[1730567833729,11.3769579,164.42,164.36,11.3769579]
[1730567833927,11.3769579,164.42,164.37,29.860684]
[1730567834603,11.3769579,164.44,164.39,11.3769579]
[1730567834809,11.3769579,164.44,164.4,23.776884]
[1730567836508,11.3769579,164.44,164.4,29.859484]
[1730567836706,11.3769579,164.45,164.4,41.2364419]
[1730567837019,11.3769579,164.46,164.42,23.776884]
[1730567837208,11.3769579,164.45,164.42,23.776884]
[1730567837417,11.3769579,164.45,164.41,23.776884]
[1730567837825,11.3769579,164.45,164.41,29.859184]
[1730567840521,11.3769579,164.45,164.41,41.2361419]
[1730567841425,11.3769579,164.46,164.41,56.4419419]
[1730567842249,11.3769579,164.45,164.41,56.4419419]
[1730567844138,11.3769579,164.46,164.41,56.4419419]
[1730567845528,11.3769579,164.45,164.41,45.064984]
[1730567847650,11.3769579,164.46,164.41,56.4419419]
[1730567850438,11.3769579,164.45,164.41,45.064984]
[1730567853644,11.3769579,164.46,164.41,56.4419419]
[1730567856633,11.3769579,164.45,164.41,45.064984]
[1730567858657,6.0808,164.45,164.41,23.776884]
[1730567858830,11.3769579,164.42,164.41,23.776884]
[1730567861268,11.3769579,164.43,164.41,23.776884]
[1730567862147,11.3769579,164.44,164.41,23.776884]
[1730567866541,17.4579579,164.45,164.41,23.776884]
[1730567866769,11.3769579,164.44,164.41,23.776884]
[1730567867657,11.3769579,164.46,164.41,56.4418419]
[1730567868035,17.4570579,164.47,164.43,23.776884]
[1730567869359,17.4570579,164.47,164.43,29.858384]
[1730567869563,16.6284,164.5,164.43,56.4393419]
[1730567869564,11.3769579,164.48,164.43,56.4393419]
[1730567869761,11.3769579,164.49,164.44,11.3769579]
[1730567870164,11.3769579,164.48,164.43,56.4393419]
[1730567873269,11.3769579,164.47,164.43,45.062384]
[1730567876776,11.3769579,164.48,164.43,56.4393419]
[1730567878577,11.3769579,164.47,164.43,45.062384]
[1730567884256,11.3769579,164.45,164.43,38.980884]
[1730567884584,21.2752,164.51,164.42,6.31094609]
[1730567884585,11.3769579,164.44,164.42,6.31094609]
[1730567884774,11.3769579,164.43,164.42,6.31094609]
[1730567885077,11.3769579,164.43,164.37,21.2928]
[1730567885372,11.3769579,164.4,164.39,6.30713561]
[1730567885577,17.4596579,164.4,164.39,6.30713561]
[1730567885770,17.4596579,164.4,164.34,57.0122579]
[1730567885771,62.9674895,164.4,164.34,15.2121]
[1730567885989,11.3769579,164.36,164.34,15.2121]
[1730567886268,11.3769579,164.36,164.35,6.30862373]
[1730567886480,11.3769579,164.37,164.35,6.30862373]
[1730567890558,11.3769579,164.36,164.35,6.30862373]
[1730567891777,11.3769579,164.37,164.35,6.30862373]
[1730567892088,11.3769579,164.38,164.35,6.30862373]
[1730567892286,11.3769579,164.37,164.35,6.30862373]
[1730567893670,11.3769579,164.36,164.35,6.30862373]
[1730567893973,11.3769579,164.38,164.35,6.30862373]
[1730567894569,11.3769579,164.37,164.35,6.30862373]
[1730567894784,11.3769579,164.36,164.35,30.08550773]
[1730567897591,11.3769579,164.39,164.36,23.776884]
[1730567897888,15.3191,164.41,164.36,23.776884]
[1730567897889,11.3769579,164.41,164.36,23.776884]
[1730567898084,11.3769579,164.4,164.36,23.776884]
[1730567899290,11.3769579,164.4,164.36,29.860784]
[1730567900569,11.3769579,164.4,164.36,45.071284]
[1730567900770,11.3769579,164.41,164.36,45.071284]
[1730567901785,11.3769579,164.42,164.38,11.3769579]
[1730567901992,11.3769579,164.44,164.39,11.3769579]
[1730567902160,11.3769579,164.45,164.4,35.1538419]
[1730567903165,11.3769579,164.47,164.42,11.3769579]
[1730567903366,11.3769579,164.47,164.43,23.776884]
[1730567904390,11.3769579,164.47,164.43,29.858384]
[1730567909087,11.3769579,164.48,164.43,56.4393419]
[1730567911987,11.3769579,164.48,164.43,45.062384]
[1730567914698,11.3769579,164.47,164.43,45.062384]
[1730567914896,11.3769579,164.46,164.43,45.062384]
[1730567915198,11.3769579,164.45,164.43,23.776884]
[1730567915590,6.0799,164.48,164.41,23.776884]
[1730567915591,11.3769579,164.44,164.41,23.776884]
[1730567915776,11.3769579,164.43,164.41,23.776884]
[1730567915981,11.3769579,164.43,164.4,21.2894]
[1730567916607,11.3769579,164.41,164.38,12.3904514]
[1730567917006,11.3769579,164.41,164.38,6.3073514]
[1730567918003,11.3769579,164.42,164.38,12.3907514]
[1730567918313,11.3769579,164.43,164.39,23.776884]
[1730567919715,11.3769579,164.43,164.39,29.859684]
[1730567920988,11.3769579,164.42,164.39,29.859684]
[1730567921201,11.3769579,164.43,164.39,45.067384]
[1730567921793,11.3769579,164.46,164.41,23.776884]
[1730567921991,11.3769579,164.46,164.41,35.1538419]
[1730567923215,6.0802,164.47,164.41,35.1538419]
[1730567923216,11.3769579,164.44,164.43,23.776884]
[1730567923601,11.3769579,164.44,164.42,23.776884]
[1730567923802,11.3769579,164.43,164.42,23.776884]
[1730567927802,11.3769579,164.44,164.42,23.776884]
[1730567928524,11.3769579,164.45,164.42,29.858684]
[1730567929513,11.3769579,164.46,164.42,45.063584]
[1730567929723,11.3769579,164.48,164.42,56.4405419]
[1730567929893,11.3769579,164.48,164.44,23.776884]
[1730567930510,11.3769579,164.47,164.43,23.776884]
[1730567930697,11.3769579,164.47,164.43,29.858184]
[1730567931017,6.0794,164.49,164.43,29.858184]
[1730567931018,11.3769579,164.46,164.43,29.858184]
[1730567932298,11.3769579,164.44,164.43,23.776884]
[1730567933616,11.3769579,164.44,164.42,23.776884]
[1730567933799,11.3769579,164.43,164.42,23.776884]
[1730567937028,11.3769579,164.43,164.41,23.776884]
[1730567937201,11.3769579,164.42,164.41,23.776884]
[1730567939728,11.3769579,164.43,164.41,23.776884]
[1730567946020,11.3769579,164.42,164.41,23.776884]
[1730567946335,11.3769579,164.42,164.4,6.31367624]
[1730567946643,11.3769579,164.41,164.4,6.31367624]
[1730567948036,17.4591579,164.42,164.4,6.31367624]
[1730567948532,17.4589579,164.42,164.4,6.31367624]
[1730567948918,11.3769579,164.43,164.41,23.776884]
[1730567949133,11.3769579,164.44,164.41,23.776884]
[1730567949808,16.6636,164.47,164.41,23.776884]
[1730567949809,11.3769579,164.43,164.41,23.776884]
[1730567950413,11.3769579,164.42,164.41,23.776884]
[1730567950624,11.3769579,164.42,164.4,6.3022302]
[1730567950832,11.3769579,164.41,164.4,30.0791142]
[1730567954223,17.4586579,164.43,164.4,30.0791142]
[1730567955523,11.3769579,164.43,164.41,23.776884]
[1730567956645,11.3769579,164.44,164.41,23.776884]
[1730567957957,11.3769579,164.44,164.41,29.859084]
[1730567965032,11.3769579,164.48,164.43,11.3769579]
[1730567965244,11.3769579,164.48,164.44,23.776884]
[1730567966027,11.3769579,164.48,164.45,6.0808]
[1730567966227,11.3769579,164.48,164.46,23.776884]
[1730567966943,11.3769579,164.49,164.46,23.776884]
[1730567968655,11.3769579,164.48,164.46,23.776884]
[1730567969433,11.3769579,164.47,164.46,23.776884]
[1730567972746,11.3769579,164.47,164.45,23.776884]
[1730567972952,11.3769579,164.46,164.45,23.776884]
[1730567974263,11.3769579,164.47,164.45,23.776884]
[1730567975362,11.3769579,164.46,164.45,23.776884]
[1730567976664,17.4575579,164.46,164.42,6.30368693]
[1730567977039,11.3769579,164.43,164.42,6.30368693]
[1730567977949,11.3769579,164.44,164.43,23.776884]
[1730567980551,11.3769579,164.44,164.42,6.30368693]
[1730567980760,11.3769579,164.43,164.42,30.08057093]
[1730567981359,11.3769579,164.43,164.42,6.30368693]
[1730567981569,11.3769579,164.43,164.38,6.0834]
[1730567981749,11.3769579,164.43,164.39,6.3043698]
[1730567981941,11.3769579,164.4,164.39,6.3043698]
[1730567982343,11.3769579,164.4,164.39,12.3873698]
[1730567982564,11.3769579,164.41,164.39,12.3873698]
[1730567982767,11.3769579,164.41,164.4,23.776884]
[1730567983567,15.749,164.46,164.4,23.776884]
[1730567983568,11.3769579,164.42,164.4,23.776884]
[1730567984575,11.3769579,164.42,164.4,29.859384]
[1730567986474,11.3769579,164.43,164.4,29.859384]
[1730567987344,11.3769579,164.44,164.4,45.066184]
[1730567988662,11.3769579,164.43,164.4,45.066184]
[1730567989367,11.3769579,164.44,164.4,45.066184]
[1730567989945,11.3769579,164.43,164.4,45.066184]
[1730567991776,11.3769579,164.44,164.4,45.066184]
[1730567997062,11.3769579,164.46,164.41,11.3769579]
[1730567997267,11.3769579,164.47,164.43,23.776884]
[1730567998068,11.3769579,164.47,164.43,29.858084]
[1730567999266,15.749,164.5,164.43,29.858084]
[1730567999267,11.3769579,164.48,164.43,56.4390419]
[1730568000681,6.079,164.5,164.43,56.4390419]
[1730568000682,11.3769579,164.45,164.43,45.062084]
[1730568001277,11.3769579,164.46,164.43,45.062084]
[1730568001665,11.3769579,164.45,164.43,45.062084]
[1730568003684,6.0801,164.48,164.4,27.5971457]
[1730568003685,11.3769579,164.44,164.4,27.5971457]
[1730568003979,6.0808,164.46,164.4,27.5971457]
[1730568003980,11.3769579,164.43,164.4,27.5971457]
[1730568004286,11.3769579,164.41,164.4,6.3084457]
[1730568005555,11.3769579,164.41,164.4,30.0853297]
[1730568006758,17.4592579,164.41,164.4,6.3084457]
[1730568010276,62.9670895,164.41,164.34,29.861484]
[1730568010479,11.3769579,164.35,164.33,21.2976]
[1730568010685,11.3769579,164.34,164.33,21.2976]
[1730568010978,11.3769579,164.34,164.33,21.52275935]
[1730568011775,11.3769579,164.34,164.33,45.29964335]
[1730568012084,11.3769579,164.34,164.33,6.31045935]
[1730568012964,11.3769579,164.35,164.33,6.31045935]
[1730568015674,11.3769579,164.34,164.33,30.08734335]
[1730568016567,11.3769579,164.35,164.34,23.776884]
[1730568023695,11.3769579,164.35,164.33,6.31045935]
[1730568023893,11.3769579,164.34,164.33,30.08734335]
[1730568024792,11.3769579,164.34,164.33,23.776884]
[1730568025471,11.3769579,164.34,164.32,15.2134]
[1730568025788,6.0842,164.36,164.33,23.776884]
[1730568025964,11.3769579,164.34,164.33,23.776884]
[1730568026490,11.3769579,164.34,164.31,6.3106899]
[1730568026687,11.3769579,164.32,164.31,6.3106899]
[1730568027194,11.3769579,164.33,164.31,6.3106899]
[1730568030575,11.3769579,164.33,164.32,23.776884]
[1730568030786,11.3769579,164.34,164.32,23.776884]
[1730568031698,11.3769579,164.33,164.32,23.776884]
[1730568033285,11.3769579,164.34,164.32,23.776884]
[1730568033597,11.3769579,164.33,164.32,23.776884]
[1730568039080,11.3769579,164.35,164.32,29.862484]
[1730568039275,11.3769579,164.36,164.32,29.862484]
[1730568040313,11.3769579,164.35,164.32,29.862484]
[1730568053905,11.3769579,164.36,164.32,45.076684]
[1730568054085,11.3769579,164.37,164.32,56.4536419]
[1730568054908,11.3769579,164.38,164.33,11.3769579]
[1730568055296,11.3769579,164.38,164.34,23.776884]
[1730568055501,11.3769579,164.38,164.34,29.861684]
[1730568055711,11.3769579,164.38,164.34,56.4509419]
[1730568056014,11.3769579,164.39,164.36,23.776884]
[1730568056908,11.3769579,164.39,164.36,29.860884]
[1730568057499,11.3769579,164.39,164.36,45.071384]
[1730568058099,11.3769579,164.41,164.36,86.8693419]
[1730568058298,11.3769579,164.41,164.38,23.776884]
[1730568058696,11.3769579,164.41,164.37,23.776884]
[1730568058893,6.5386,164.46,164.37,35.1538419]
[1730568058894,11.3769579,164.42,164.37,35.1538419]
[1730568059094,11.3769579,164.42,164.38,6.0834]
[1730568059309,11.3769579,164.42,164.39,23.776884]
[1730568060292,11.3769579,164.41,164.39,23.776884]
[1730568060817,11.3769579,164.4,164.39,23.776884]
[1730568061016,11.3769579,164.4,164.36,15.2105]
[1730568061318,11.3769579,164.37,164.36,15.2105]
[1730568061807,11.3769579,164.37,164.36,38.987384]
[1730568064920,11.3769579,164.41,164.37,23.776884]
[1730568065092,11.3769579,164.41,164.31,0.1]
[1730568065093,11.3769579,164.38,164.31,6.086]
[1730568065299,6.6386,164.4,164.3,6.0863]
[1730568065499,0.1,164.39,164.29,21.3035]
[1730568066096,0.1,164.39,164.3,6.0864]
[1730568066728,11.3769579,164.35,164.31,6.0857]
[1730568067128,11.3769579,164.35,164.32,6.0854]
[1730568067603,11.3769579,164.35,164.31,6.0859]
[1730568068515,11.3769579,164.36,164.34,23.776884]
[1730568068825,11.3769579,164.37,164.34,29.861684]
[1730568072127,11.3769579,164.36,164.34,29.861684]
[1730568073505,11.3769579,164.35,164.34,29.861684]
[1730568074008,11.3769579,164.36,164.34,29.861684]
[1730568074626,11.3769579,164.36,164.34,28.361684]
[1730568075420,11.3769579,164.35,164.33,6.30848871]
[1730568075727,11.3769579,164.34,164.33,6.30848871]
[1730568076735,11.3769579,164.34,164.33,30.08537271]
[1730568077331,11.3769579,164.35,164.33,30.08537271]
[1730568077704,11.3769579,164.37,164.34,23.776884]
[1730568080631,11.3769579,164.36,164.34,23.776884]
[1730568080922,11.3769579,164.35,164.34,23.776884]
[1730568089443,17.4614579,164.35,164.27,21.3055]
[1730568089633,11.3769579,164.3,164.27,21.3055]
[1730568089815,11.3769579,164.34,164.28,11.3769579]
[1730568090141,11.3769579,164.34,164.28,17.68731333]
[1730568090637,11.3769579,164.33,164.29,23.776884]
[1730568090830,11.3769579,164.33,164.29,29.863384]
[1730568091519,6.0845,164.35,164.29,29.863384]
[1730568091520,11.3769579,164.34,164.29,29.863384]
[1730568091722,11.3769579,164.34,164.29,41.2403419]
[1730568091916,11.3769579,164.35,164.29,56.4572419]
[1730568092105,17.4614579,164.36,164.31,23.776884]
[1730568093541,11.3769579,164.37,164.32,11.3769579]
[1730568093712,11.3769579,164.37,164.33,23.776884]
[1730568094821,11.3769579,164.37,164.33,29.861884]
[1730568095529,11.3769579,164.37,164.33,45.075084]
[1730568096228,11.3769579,164.36,164.33,45.075084]
[1730568100928,11.3769579,164.37,164.33,45.075084]
[1730568106122,11.3769579,164.38,164.33,56.4520419]
[1730568106326,17.4598579,164.4,164.35,23.776884]
[1730568106551,11.3769579,164.42,164.36,11.3769579]
[1730568106747,11.3769579,164.42,164.37,23.776884]
[1730568107735,17.4589579,164.42,164.37,29.860484]
[1730568107930,11.3769579,164.4,164.37,29.860484]
[1730568108546,11.3769579,164.4,164.37,45.069984]
[1730568110228,11.3769579,164.39,164.37,23.776884]
[1730568110423,11.3769579,164.38,164.33,15.2125]
[1730568110642,11.3769579,164.35,164.33,21.2978]
[1730568111150,11.3769579,164.38,164.33,21.2978]
[1730568111942,11.3769579,164.4,164.34,11.3769579]
[1730568112735,11.3769579,164.4,164.35,23.776884]
[1730568113159,11.3769579,164.4,164.36,6.0842]
[1730568113449,11.3769579,164.4,164.37,23.776884]
[1730568119439,11.3769579,164.39,164.37,23.776884]
[1730568120558,11.3769579,164.38,164.33,15.2125]
[1730568120852,11.3769579,164.36,164.33,21.2977]
[1730568122356,11.3769579,164.36,164.34,23.776884]
[1730568123647,11.3769579,164.35,164.32,6.31088986]
[1730568123845,11.3769579,164.34,164.32,6.31088986]
[1730568124740,17.4611579,164.36,164.32,6.31088986]
[1730568124941,17.4611579,164.36,164.32,12.39648986]
[1730568125538,11.3769579,164.34,164.32,6.31088986]
[1730568128962,11.3769579,164.35,164.32,6.31088986]
[1730568129263,15.3487,164.38,164.33,23.776884]
[1730568129264,11.3769579,164.38,164.33,23.776884]
[1730568129643,11.3769579,164.37,164.33,23.776884]
[1730568130353,11.3769579,164.37,164.33,29.861984]
[1730568133442,11.3769579,164.37,164.33,45.075184]
[1730568134567,11.3769579,164.39,164.34,11.3769579]
[1730568134745,11.3769579,164.4,164.35,35.1538419]
[1730568134951,6.0823,164.41,164.33,45.075184]
[1730568134952,11.3769579,164.44,164.4,23.776884]
[1730568135359,11.3769579,164.44,164.39,23.776884]
[1730568135667,11.3769579,164.43,164.39,23.776884]
[1730568136166,11.3769579,164.43,164.39,29.859784]
[1730568136963,11.3769579,164.45,164.4,11.3769579]
[1730568137167,11.3769579,164.46,164.41,23.776884]
[1730568138262,11.3769579,164.46,164.42,23.776884]
[1730568138858,6.0798,164.48,164.42,23.776884]
[1730568138859,11.3769579,164.47,164.42,23.776884]
[1730568139167,11.3769579,164.46,164.42,23.776884]
[1730568139753,11.3769579,164.46,164.42,29.858684]
[1730568141362,11.3769579,164.45,164.42,29.858684]
[1730568141868,11.3769579,164.44,164.42,23.776884]
[1730568142961,11.3769579,164.43,164.42,23.776884]
[1730568144062,11.3769579,164.44,164.42,23.776884]
[1730568147173,11.3769579,164.43,164.42,23.776884]
[1730568148556,11.3769579,164.44,164.42,23.776884]
[1730568154372,17.4581579,164.44,164.41,15.2058]
[1730568154565,11.3769579,164.43,164.41,23.776884]
[1730568154965,11.3769579,164.42,164.38,34.07652687]
[1730568155270,11.3769579,164.42,164.39,23.776884]
[1730568155876,11.3769579,164.41,164.39,23.776884]
[1730568156087,11.3769579,164.4,164.39,23.776884]
[1730568157076,11.3769579,164.41,164.39,23.776884]
[1730568157482,11.3769579,164.42,164.39,23.776884]
[1730568157971,17.4586579,164.43,164.39,23.776884]
[1730568162175,11.3769579,164.42,164.39,23.776884]
[1730568166473,11.3769579,164.42,164.39,29.859784]
[1730568166680,11.3769579,164.43,164.39,45.067484]
[1730568167300,11.3769579,164.44,164.39,45.067484]
[1730568168974,11.3769579,164.43,164.39,45.067484]
[1730568173987,11.3769579,164.42,164.39,38.984584]
[1730568174172,11.3769579,164.41,164.39,38.984584]
[1730568174588,11.3769579,164.41,164.39,23.776884]
[1730568174783,11.3769579,164.4,164.39,23.776884]
[1730568174978,11.3769579,164.41,164.39,23.776884]
[1730568182087,11.3769579,164.42,164.39,23.776884]
[1730568184706,11.3769579,164.41,164.39,23.776884]
[1730568185884,15.2012,164.46,164.38,6.33757969]
[1730568185885,17.4596579,164.4,164.38,6.33757969]
[1730568186086,11.3769579,164.39,164.38,30.11446369]
[1730568186510,11.3769579,164.39,164.38,6.33757969]
[1730568189011,11.3769579,164.39,164.32,11.3769579]
[1730568189012,17.4599579,164.39,164.32,23.776884]
[1730568189214,11.3769579,164.34,164.32,23.776884]
[1730568189711,11.3769579,164.34,164.32,30.11663607]
[1730568189913,11.3769579,164.34,164.32,6.33975207]
[1730568190112,6.083,164.39,164.32,6.33975207]
[1730568190113,11.3769579,164.33,164.32,6.33975207]
[1730568190298,11.3769579,164.34,164.32,6.33975207]
[1730568191714,11.3769579,164.35,164.33,23.776884]
[1730568192294,11.3769579,164.34,164.33,23.776884]
[1730568192709,11.3769579,164.35,164.33,23.776884]
[1730568193308,11.3769579,164.34,164.33,23.776884]
[1730568194393,17.4621579,164.34,164.32,6.33975207]
[1730568194689,11.3769579,164.33,164.32,6.33975207]
[1730568196209,6.0856,164.32,164.27,6.0875]
[1730568196513,11.3769579,164.31,164.29,6.34019604]
[1730568197395,17.4629579,164.31,164.29,6.34019604]
[1730568197596,11.3769579,164.3,164.29,6.34019604]
[1730568197895,11.3769579,164.3,164.26,29.65536661]
[1730568198093,11.3769579,164.28,164.27,6.34198465]
[1730568198502,11.3769579,164.3,164.27,6.34198465]
[1730568198908,11.3769579,164.31,164.27,6.34198465]
[1730568199812,11.3769579,164.31,164.28,23.776884]
[1730568200616,11.3769579,164.3,164.28,23.776884]
[1730568201501,11.3769579,164.31,164.28,23.776884]
[1730568202818,11.3769579,164.3,164.28,23.776884]
[1730568204016,11.3769579,164.32,164.28,23.776884]
[1730568204330,11.3769579,164.33,164.28,23.776884]
[1730568204499,27.0417579,164.35,164.3,23.776884]
[1730568204694,11.3769579,164.34,164.3,23.776884]
[1730568204897,11.3769579,164.33,164.3,23.776884]
[1730568205113,15.6648,164.35,164.29,23.776884]
[1730568205114,11.3769579,164.34,164.29,23.776884]
[1730568205498,11.3769579,164.34,164.29,35.1538419]
[1730568205720,11.3769579,164.34,164.29,41.2402419]
[1730568206016,11.3769579,164.34,164.29,29.863284]
[1730568206595,17.4618579,164.34,164.29,29.863284]
[1730568210229,11.3769579,164.34,164.29,29.863284]
[1730568210524,11.3769579,164.34,164.29,45.080184]
[1730568211625,17.4619579,164.34,164.29,45.080184]
[1730568213024,11.3769579,164.34,164.29,56.4571419]
[1730568213217,11.3769579,164.35,164.31,23.776884]
[1730568213525,11.3769579,164.33,164.3,23.776884]
[1730568214408,11.3769579,164.34,164.3,23.776884]
[1730568214609,17.4618579,164.34,164.3,23.776884]
[1730568215910,17.4618579,164.34,164.28,6.34100576]
[1730568215911,11.3769579,164.32,164.28,6.34100576]
[1730568216128,11.3769579,164.31,164.28,6.34100576]
[1730568217011,11.3769579,164.32,164.28,6.34100576]
[1730568218034,11.3769579,164.3,164.28,6.34100576]
[1730568218514,11.3769579,164.29,164.28,6.34100576]
[1730568219135,11.3769579,164.3,164.28,6.34100576]
[1730568219636,17.4629579,164.31,164.28,6.34100576]
[1730568220928,6.086,164.31,164.28,6.34100576]
[1730568223538,17.4629579,164.31,164.28,6.34100576]
[1730568224727,11.3769579,164.3,164.28,6.34100576]
[1730568226036,21.2985,164.33,164.28,6.34100576]
[1730568226037,11.3769579,164.29,164.28,6.34100576]
[1730568226929,17.4636579,164.29,164.28,6.34100576]
[1730568228535,11.3769579,164.3,164.28,6.34100576]
[1730568228736,11.3769579,164.31,164.28,6.34100576]
[1730568228947,17.4625579,164.32,164.28,6.34100576]
[1730568231738,11.3769579,164.31,164.28,6.34100576]
[1730568232054,11.3769579,164.29,164.28,6.34100576]
[1730568235750,17.4636579,164.29,164.28,6.34100576]
[1730568240430,11.3769579,164.29,164.28,6.34100576]
[1730568241643,11.3769579,164.31,164.28,6.34100576]
[1730568243055,17.4633579,164.3,164.28,6.34100576]
[1730568243554,11.3769579,164.29,164.28,6.34100576]
[1730568246144,11.3769579,164.3,164.28,6.34100576]
[1730568246736,11.3769579,164.29,164.28,6.34100576]
[1730568249340,11.3769579,164.3,164.28,6.34100576]
[1730568249935,11.3769579,164.31,164.28,6.34100576]
[1730568250336,17.4622579,164.33,164.29,23.776884]
[1730568250638,11.3769579,164.32,164.29,23.776884]
[1730568250843,11.3769579,164.32,164.28,23.776884]
[1730568251059,11.3769579,164.32,164.28,30.1152695]
[1730568251354,17.4627579,164.32,164.28,30.1152695]
[1730568251537,11.3769579,164.31,164.28,30.1152695]
[1730568253770,4.53729085,164.3,164.28,30.1152695]
[1730568253971,4.53729085,164.29,164.28,30.1152695]
[1730568256766,11.3769579,164.3,164.28,30.1152695]
[1730568258076,17.4627579,164.32,164.28,36.2022695]
[1730568258360,11.3769579,164.32,164.28,51.4201695]
[1730568258567,11.3769579,164.33,164.28,51.4201695]
[1730568259854,6.0849,164.34,164.28,51.4201695]
[1730568259855,11.3769579,164.34,164.29,53.7378579]
[1730568260058,11.3769579,164.38,164.34,23.776884]
[1730568260673,6.083,164.39,164.34,23.776884]
[1730568260674,11.3769579,164.37,164.34,23.776884]
[1730568260968,11.3769579,164.37,164.33,23.776884]
[1730568261169,11.3769579,164.37,164.33,29.861984]
[1730568262449,11.3769579,164.37,164.33,45.075184]
[1730568267477,11.3769579,164.36,164.33,45.075184]
[1730568271856,11.3769579,164.37,164.33,45.075184]
[1730568272078,11.3769579,164.39,164.33,56.4521419]
[1730568272566,11.3769579,164.38,164.33,56.4521419]
[1730568276093,11.3769579,164.38,164.33,45.075184]
[1730568276288,11.3769579,164.36,164.33,45.075184]